bitfinex-derivatives/quotes_ETHF0:USTF0_20250612
["timestamp","ask_amount","ask_price","bid_price","bid_amount"]
[1749733674576,0.72898,2743.2,2743.1,0.72893]
[1749733675879,0.729,2743.0,2742.9,0.73449196]
[1749733676086,0.729,2743.0,2742.9,0.00547196]
[1749733678484,0.729,2743.0,2742.9,0.73450196]
[1749733678984,3.2078,2743.7,2743.0,1.82247]
[1749733679174,3.2078,2743.7,2743.3,1.82232]
[1749733679482,3.93665,2743.7,2743.6,0.72884]
[1749733679685,3.2078,2743.7,2743.6,0.72884]
[1749733679985,1.8296,2744.0,2743.8,0.72876]
[1749733679986,0.72878,2743.9,2743.8,0.72876]
[1749733680784,3.8111,2744.0,2743.9,0.72876]
[1749733681181,0.6033,2744.0,2743.9,0.72876]
[1749733681983,0.6209,2744.1,2744.0,0.72874]
[1749733683588,1.34961,2744.1,2744.0,0.72874]
[1749733683987,0.6209,2744.1,2744.0,0.72874]
[1749733684783,0.72857,2744.7,2744.6,0.72854]
[1749733684980,0.72858,2744.7,2744.6,0.72856]
[1749733685284,0.72861,2744.5,2744.4,0.00547196]
[1749733685485,1.82159,2744.4,2743.8,29.05]
[1749733685690,0.72876,2743.9,2743.8,29.05]
[1749733685987,1.2075,2744.3,2744.0,0.72873]
[1749733686179,0.72875,2744.0,2743.9,0.72874]
[1749733686582,0.72879,2743.8,2743.7,10.06908196]
[1749733686779,3.93659,2743.8,2743.7,0.00547196]
[1749733686988,0.72879,2743.8,2743.7,0.00547196]
[1749733687185,2.56989,2743.8,2743.7,0.00547196]
[1749733688491,5.77769,2743.8,2743.7,0.00547196]
[1749733689882,5.77769,2743.8,2743.0,3.2078]
[1749733689883,0.72896,2743.2,2743.0,3.2078]
[1749733690094,1.82205,2743.7,2743.0,3.2078]
[1749733690387,0.72898,2743.1,2743.0,3.2078]
[1749733691482,0.72898,2743.1,2743.0,3.9368]
[1749733691888,1.236,2743.2,2743.1,0.72898]
[1749733692186,1.96495,2743.2,2743.1,0.72898]
[1749733692489,0.72898,2743.1,2743.0,3.2078]
[1749733693391,0.72898,2743.1,2743.0,3.9368]
[1749733693589,0.72898,2743.1,2743.0,3.2078]
[1749733694284,0.729,2743.0,2742.9,6.126]
[1749733694687,0.72898,2743.1,2743.0,0.72898]
[1749733694886,0.5872,2743.2,2743.1,0.72898]
[1749733695093,0.73441196,2743.3,2743.2,0.72895]
[1749733695294,0.00547196,2743.3,2743.2,0.72895]
[1749733696790,0.73439196,2743.3,2743.2,0.72895]
[1749733697291,0.72898,2743.2,2743.1,0.72896]
[1749733697486,0.729,2743.1,2743.0,0.72899]
[1749733697687,0.729,2743.0,2742.9,6.126]
[1749733697887,0.72903,2742.9,2742.8,3.21327196]
[1749733698388,0.72903,2742.9,2742.8,3.94231196]
[1749733698790,0.6315,2743.1,2742.8,3.21327196]
[1749733698991,1.36049,2743.1,2743.0,0.729]
[1749733699193,0.6315,2743.1,2743.0,0.729]
[1749733699691,1.36048,2743.1,2743.0,0.729]
[1749733702693,0.00547196,2743.3,2743.2,0.72895]
[1749733703392,0.73439196,2743.3,2743.2,0.72895]
[1749733704595,0.00547196,2743.3,2743.2,0.72895]
[1749733704984,0.73439196,2743.3,2743.2,0.72895]
[1749733705384,0.73439196,2743.3,2742.8,3.21327196]
[1749733705385,0.72903,2742.9,2742.8,3.21327196]
[1749733705591,0.72903,2742.9,2742.8,0.00547196]
[1749733706091,0.72903,2742.9,2742.8,0.73453196]
[1749733707197,0.72901,2743.1,2743.0,0.72898]
[1749733708697,0.00547196,2743.3,2743.2,0.72895]
[1749733709895,0.73439196,2743.3,2743.2,1.91295]
[1749733710096,0.00547196,2743.3,2743.2,1.91295]
[1749733711189,0.73439196,2743.3,2743.2,1.91295]
[1749733711392,0.00547196,2743.3,2743.2,1.91295]
[1749733711790,0.00547196,2743.3,2743.1,0.72896]
[1749733711992,0.72895,2743.2,2743.1,6.85496]
[1749733712391,0.72895,2743.2,2743.1,6.126]
[1749733713101,0.72898,2743.1,2743.0,3.93679]
[1749733713299,0.00547196,2743.3,2742.9,6.126]
[1749733713495,0.72903,2742.9,2742.8,0.00547196]
[1749733713696,3.21327196,2743.3,2742.8,0.00547196]
[1749733713903,0.00547196,2743.3,2743.2,0.72895]
[1749733714798,0.00547196,2743.3,2743.2,3.93675]
[1749733715099,0.00547196,2743.3,2743.2,0.72895]
[1749733716096,0.00547196,2743.3,2743.2,3.93675]
[1749733718898,1.2254,2743.9,2743.8,0.72879]
[1749733719296,0.72876,2743.9,2743.8,0.72879]
[1749733719703,3.2078,2744.2,2743.7,1.82204]
[1749733719901,0.72877,2744.0,2743.9,0.72873]
[1749733720297,0.72872,2744.1,2744.0,0.72871]
[1749733720502,3.94198196,2744.2,2744.1,0.72871]
[1749733720701,0.00547196,2744.2,2744.1,0.72871]
[1749733721000,0.72871,2744.1,2744.0,3.93652]
[1749733721503,0.73417196,2744.2,2744.1,0.72871]
[1749733722198,0.00547196,2744.2,2744.1,0.72871]
[1749733723504,0.73415196,2744.2,2744.1,0.72871]
[1749733723700,0.00547196,2744.2,2744.1,0.72871]
[1749733724103,0.72855,2744.8,2744.7,0.72853]
[1749733724302,0.72859,2744.7,2744.6,0.72856]
[1749733724804,0.72857,2744.7,2744.6,0.72854]
[1749733725308,0.6324,2745.1,2744.7,1.82139]
[1749733725510,0.72848,2745.1,2745.0,0.72845]
[1749733726610,0.72844,2745.2,2745.1,0.72842]
[1749733726812,3.2078,2745.3,2745.0,0.72846]
[1749733726813,0.72848,2745.1,2745.0,0.72846]
[1749733727006,0.7285,2744.9,2744.8,8.0601]
[1749733727200,3.2078,2745.3,2744.8,9.15292]
[1749733727407,3.2078,2745.3,2745.2,0.72842]
[1749733727804,6.124,2745.9,2745.2,0.72842]
[1749733727805,3.9361,2745.7,2745.2,7.94505]
[1749733728004,0.72834,2745.6,2745.5,0.72832]
[1749733728200,0.7283,2745.7,2745.6,0.72829]
[1749733728810,0.72827,2745.8,2745.7,0.72826]
[1749733729008,0.72833,2745.6,2745.5,0.72832]
[1749733729211,3.8046,2746.0,2745.5,1.2267]
[1749733729415,0.72825,2745.9,2745.8,0.72824]
[1749733730308,0.72839,2745.3,2745.2,9.3298]
[1749733730509,0.72839,2745.3,2745.2,6.85042]
[1749733730813,0.72838,2745.4,2745.3,0.72837]
[1749733731411,0.72839,2745.3,2745.2,6.8504]
[1749733731706,0.72839,2745.3,2745.2,8.1098]
[1749733731910,1.82072,2745.7,2745.2,7.3814]
[1749733732102,0.72839,2745.3,2745.2,6.85039]
[1749733732505,1.2809,2745.7,2744.9,44.6581]
[1749733732708,0.72847,2745.0,2744.9,45.38659]
[1749733732903,0.72847,2745.0,2744.9,44.6581]
[1749733733105,0.72847,2745.0,2744.9,3.2078]
[1749733733302,0.72853,2744.8,2744.7,22.038]
[1749733733710,0.72853,2744.8,2744.7,28.159]
[1749733733902,0.6404,2745.2,2744.7,28.159]
[1749733734107,0.72847,2745.1,2745.0,0.72845]
[1749733734512,0.6404,2745.2,2744.7,31.16627]
[1749733734813,0.7285,2744.9,2744.8,0.72851]
[1749733735014,0.72853,2744.8,2744.7,28.88753]
[1749733735311,0.72853,2744.8,2744.7,28.159]
[1749733735519,0.72853,2744.8,2744.7,6.121]
[1749733736017,0.72853,2744.8,2744.7,6.84955]
[1749733736217,0.72853,2744.8,2744.7,6.121]
[1749733736905,0.72855,2744.7,2744.6,3.2078]
[1749733737107,0.72858,2744.6,2744.5,6.121]
[1749733737418,0.72861,2744.5,2744.4,6.85509196]
[1749733737714,0.72855,2744.8,2744.7,0.72854]
[1749733737908,0.6196,2745.0,2744.9,0.7285]
[1749733738109,3.818,2745.1,2744.7,1.82138]
[1749733738110,3.2078,2745.1,2745.0,0.72847]
[1749733738412,0.72838,2745.4,2745.3,0.72837]
[1749733738711,0.72842,2745.3,2744.9,1.82119]
[1749733738911,0.72842,2745.3,2745.2,0.7284]
[1749733739313,0.72837,2745.4,2745.3,0.72837]
[1749733739815,0.72844,2745.2,2745.1,0.72841]
[1749733740216,1.2298,2745.5,2745.0,4.4725]
[1749733740418,1.95816,2745.5,2745.4,0.72837]
[1749733741215,0.72839,2745.4,2745.3,0.72838]
[1749733741413,1.2298,2745.5,2745.2,6.84841]
[1749733741414,0.72839,2745.3,2745.2,6.84841]
[1749733741722,0.7285,2745.0,2744.9,0.72848]
[1749733742021,4.396,2745.4,2744.9,1.82126]
[1749733742216,4.396,2745.4,2744.9,2.99236]
[1749733742425,3.93618,2745.4,2745.3,0.72839]
[1749733742615,0.72843,2745.3,2745.2,0.7284]
[1749733742914,3.2078,2745.4,2745.3,0.72839]
[1749733743316,0.72839,2745.3,2745.2,6.8484]
[1749733743516,3.93619,2745.4,2745.3,0.72839]
[1749733743917,0.72839,2745.3,2745.2,6.84841]
[1749733744112,3.2078,2745.4,2745.3,0.72839]
[1749733744818,3.93617,2745.4,2745.3,0.72839]
[1749733745223,3.2078,2745.4,2745.3,0.72839]
[1749733745422,0.6196,2745.5,2745.4,0.72837]
[1749733745921,0.6277,2745.8,2745.7,0.72829]
[1749733746114,1.36406,2746.2,2745.7,0.72829]
[1749733746421,2.4709,2746.2,2746.1,0.72818]
[1749733746719,3.2078,2746.6,2746.2,1.82039]
[1749733747021,3.2078,2746.9,2746.3,6.12]
[1749733747419,0.7281,2746.4,2746.3,47.64811]
[1749733747618,0.7281,2746.4,2746.3,41.52813]
[1749733747818,0.72813,2746.3,2746.2,6.84814]
[1749733748217,0.72821,2746.0,2745.9,0.00547196]
[1749733748914,3.93601,2746.0,2745.9,0.00547196]
[1749733749423,1.82062,2745.9,2745.5,0.72832]
[1749733749621,0.72836,2745.5,2745.4,0.72835]
[1749733749921,0.72836,2745.5,2745.2,9.3278]
[1749733749922,0.7283,2745.7,2745.6,0.72828]
[1749733750117,1.2234,2745.9,2745.2,9.3278]
[1749733750314,0.72838,2745.4,2745.3,0.00546179]
[1749733751124,1.95178,2745.4,2745.3,0.00546179]
[1749733753920,9.4312,2745.4,2744.9,3.93627]
[1749733754219,0.72849,2745.0,2744.9,3.93627]
[1749733755225,0.72849,2745.0,2744.9,3.2078]
[1749733755524,0.72849,2745.0,2744.9,3.9363]
[1749733755921,0.72853,2744.8,2744.7,6.12446179]
[1749733756124,0.72853,2744.8,2744.7,6.85301179]
[1749733756320,0.72853,2744.8,2744.7,6.12446179]
[1749733756921,0.6477,2744.9,2744.7,6.12446179]
[1749733757125,1.37622,2744.9,2744.8,0.72853]
[1749733757628,3.2078,2745.3,2745.2,0.72842]
[1749733757827,3.2078,2745.3,2744.9,2.4695]
[1749733758022,0.72847,2745.0,2744.9,3.19799]
[1749733758329,0.72853,2744.8,2744.7,6.85300179]
[1749733758628,0.72853,2744.8,2744.7,6.12446179]
[1749733759026,3.93633,2744.8,2744.7,6.12446179]
[1749733759217,3.93633,2744.8,2744.7,0.00546179]
[1749733759421,5.15673,2744.8,2744.7,0.00546179]
[1749733760018,10.15673,2744.8,2744.7,0.00546179]
[1749733761530,5.15673,2744.8,2744.7,0.00546179]
[1749733762126,1.2274,2744.9,2744.7,0.00546179]
[1749733762333,0.7285,2744.9,2744.8,0.72849]
[1749733762530,0.72849,2745.0,2744.9,0.72847]
[1749733762729,0.7285,2745.0,2744.9,0.72849]
[1749733763234,3.2078,2745.1,2744.7,0.00546179]
[1749733763531,0.72852,2744.9,2744.8,0.7285]
[1749733765430,0.72849,2745.0,2744.9,0.72847]
[1749733765733,3.2078,2745.1,2744.7,0.00546179]
[1749733765734,3.93626,2745.1,2745.0,0.72847]
[1749733765924,0.72851,2745.0,2744.9,0.72848]
[1749733766129,3.2078,2745.1,2744.7,1.20596179]
[1749733766324,0.72853,2744.8,2744.7,0.00546179]
[1749733766527,3.93633,2744.8,2744.7,0.00546179]
[1749733767133,9.57883,2744.8,2744.7,0.00546179]
[1749733769938,9.57883,2744.8,2744.7,1.79e-06]
[1749733770933,4.57883,2744.8,2744.7,1.79e-06]
[1749733771538,4.57883,2744.8,2744.7,0.72855179]
[1749733771736,4.57883,2744.8,2744.7,1.79e-06]
[1749733772038,3.2078,2744.8,2744.7,0.72855179]
[1749733772939,0.72845,2745.2,2745.1,0.72843]
[1749733773935,0.72841,2745.3,2745.2,0.72839]
[1749733774542,3.93618,2745.4,2745.3,0.72839]
[1749733774840,0.72837,2745.4,2745.3,0.72839]
[1749733775037,0.5972,2745.6,2745.1,0.5877]
[1749733775236,0.72839,2745.4,2745.3,0.72837]
[1749733775640,0.72839,2745.3,2745.2,1.9921]
[1749733775943,0.72839,2745.3,2745.2,7.4357]
[1749733776242,0.72839,2745.3,2745.2,6.172]
[1749733776437,0.72847,2745.0,2744.9,3.2078]
[1749733776745,0.72853,2744.8,2744.7,1.79e-06]
[1749733777335,3.93633,2744.8,2744.7,1.79e-06]
[1749733779441,8.93633,2744.8,2744.7,1.79e-06]
[1749733780243,1.82139,2744.7,2743.5,9.3798]
[1749733780448,0.72885,2743.6,2743.5,10.5671]
[1749733780741,5.02973,2743.9,2743.5,4.3951]
[1749733780742,0.72884,2743.7,2743.5,4.3951]
[1749733780941,3.2078,2743.9,2743.5,4.3951]
[1749733781244,0.7288,2743.8,2743.7,0.7288]
[1749733783244,0.72879,2743.9,2743.8,0.72878]
[1749733783446,0.7288,2743.8,2743.7,0.72879]
[1749733784339,0.72881,2743.8,2743.7,0.7288]
[1749733784537,1.82192,2743.9,2743.5,4.3951]
[1749733784740,1.82192,2743.9,2743.4,0.00546179]
[1749733784741,0.72887,2743.5,2743.4,0.00546179]
[1749733785145,3.93667,2743.5,2743.4,0.00546179]
[1749733787451,3.2078,2743.5,2743.4,0.73436179]
[1749733787652,3.93667,2743.5,2743.4,0.73436179]
[1749733787953,3.2078,2743.5,2743.4,0.73436179]
[1749733788253,3.93667,2743.5,2743.4,0.73436179]
[1749733788648,3.2078,2743.5,2743.4,0.73436179]
[1749733789951,0.72887,2743.5,2743.4,1.34986179]
[1749733790151,0.72886,2743.6,2743.5,0.72884]
[1749733790350,0.72886,2743.6,2743.5,1.99254]
[1749733791553,0.72886,2743.6,2743.5,1.99257]
[1749733792157,0.72883,2743.7,2743.6,0.7288]
[1749733793954,0.72881,2743.8,2743.7,0.72879]
[1749733794857,0.72885,2743.6,2743.5,1.99255]
[1749733795259,0.72884,2743.7,2743.6,0.7288]
[1749733796360,0.72881,2743.8,2743.7,0.72879]
[1749733796859,0.72879,2743.8,2743.7,0.72879]
[1749733797260,0.72879,2743.8,2743.7,1.98969]
[1749733797654,3.93658,2743.9,2743.8,0.72879]
[1749733799566,5.10028,2743.9,2743.8,0.72879]
[1749733800562,0.72885,2743.7,2743.6,0.72881]
[1749733800762,4.3715,2743.9,2743.5,1.82214]
[1749733800959,1.1637,2743.9,2743.8,3.93659]
[1749733801159,1.1637,2743.9,2743.8,10.14259]
[1749733801365,0.00546179,2744.0,2743.9,0.72877]
[1749733801562,3.93638,2744.7,2744.6,0.72855]
[1749733801865,3.2078,2744.7,2744.6,0.72855]
[1749733802056,3.2078,2745.0,2744.8,0.7285]
[1749733802261,0.72852,2744.9,2744.8,0.7285]
[1749733803163,0.73394179,2745.1,2745.0,0.72847]
[1749733803366,0.72851,2745.0,2744.9,0.72849]
[1749733803568,0.72853,2744.9,2744.8,0.72851]
[1749733803767,0.00546179,2745.1,2744.7,6.206]
[1749733804065,0.73392179,2745.1,2745.0,0.72847]
[1749733804477,0.7285,2744.9,2744.8,1.90272]
[1749733804769,1.82126,2744.9,2744.3,6.205]
[1749733804970,1.82162,2744.4,2743.8,3.2078]
[1749733805164,0.72875,2744.0,2743.9,6.93373]
[1749733805468,0.72872,2744.1,2744.0,0.7287]
[1749733806267,0.6285,2744.5,2744.1,0.72869]
[1749733806268,0.72871,2744.2,2744.1,0.72869]
[1749733807268,0.72868,2744.3,2744.2,0.72866]
[1749733807468,0.72865,2744.4,2744.3,0.72863]
[1749733807967,2.45006,2744.5,2743.9,1.1742]
[1749733808268,0.72874,2744.1,2744.0,0.72872]
[1749733809967,1.82186,2744.0,2743.5,3.2078]
[1749733810167,0.72882,2743.7,2743.6,6.93383]
[1749733811063,0.72881,2743.8,2743.7,0.72879]
[1749733812564,0.0620172,2743.9,2743.8,0.72879]
[1749733813162,0.72882,2743.8,2743.7,0.7288]
[1749733813370,0.72885,2743.7,2743.6,0.72883]
[1749733813568,0.72885,2743.6,2743.5,3.93666]
[1749733814169,0.72887,2743.5,2743.4,6.21046179]
[1749733814467,0.72887,2743.5,2743.4,0.00546179]
[1749733814675,0.72887,2743.5,2743.4,0.73436179]
[1749733815169,0.65316179,2743.7,2743.5,0.72887]
[1749733815372,0.00546179,2743.7,2743.6,0.72885]
[1749733815572,0.00546179,2743.7,2743.6,1.89995]
[1749733815767,0.73428179,2743.7,2743.6,1.89995]
[1749733816164,0.00546179,2743.7,2743.6,1.89995]
[1749733816369,0.72885,2743.6,2743.5,6.93386]
[1749733816569,0.72885,2743.6,2743.5,0.72887]
[1749733817570,0.72887,2743.5,2743.4,0.00546179]
[1749733817771,3.93667,2743.5,2743.4,0.00546179]
[1749733818471,5.16957,2743.5,2743.4,0.00546179]
[1749733819770,3.93667,2743.5,2743.4,0.73436179]
[1749733820272,0.00546179,2743.7,2743.6,0.72885]
[1749733820974,0.06747899,2743.7,2743.6,5.72885]
[1749733821380,3.8053,2744.4,2744.3,0.72866]
[1749733821679,0.72869,2744.3,2744.2,0.72867]
[1749733822767,4.53394,2744.4,2744.3,0.72866]
[1749733822970,4.53394,2744.4,2744.2,0.72867]
[1749733822971,0.72869,2744.3,2744.2,0.72867]
[1749733824678,1.32615,2744.4,2744.3,0.72866]
[1749733825178,0.72869,2744.3,2744.2,0.72867]
[1749733825576,0.72869,2744.2,2744.1,0.7287]
[1749733825781,0.72874,2744.1,2744.0,0.72873]
[1749733826079,0.72876,2744.0,2743.9,0.72874]
[1749733826279,0.72873,2744.1,2744.0,0.72871]
[1749733827077,1.3477,2744.2,2744.1,0.72871]
[1749733827576,0.7287,2744.2,2744.1,0.72871]
[1749733827775,3.8053,2744.4,2744.3,0.72866]
[1749733828073,0.73405809,2744.5,2744.4,0.72863]
[1749733828280,0.00543809,2744.5,2744.4,0.72863]
[1749733828676,0.73404809,2744.5,2744.4,0.72863]
[1749733828877,0.00543809,2744.5,2744.4,0.72863]
[1749733829074,0.73404809,2744.5,2744.4,2.00933]
[1749733829574,0.73404809,2744.5,2744.4,0.72863]
[1749733829878,0.72866,2744.3,2744.2,6.7547]
[1749733830080,0.72866,2744.3,2744.2,6.138]
[1749733830278,1.82166,2744.3,2743.5,6.138]
[1749733830581,0.72883,2743.7,2743.6,0.72885]
[1749733830782,3.2078,2743.9,2743.5,1.82218]
[1749733831082,3.2078,2743.9,2743.8,0.72879]
[1749733831275,1.2076,2744.2,2743.8,0.72879]
[1749733831480,1.93631,2744.2,2744.1,0.72871]
[1749733831869,0.6119,2744.2,2744.1,0.72871]
[1749733832075,1.34059,2744.2,2744.1,0.72871]
[1749733832280,0.6119,2744.2,2744.1,0.72871]
[1749733832480,3.93645,2744.4,2743.9,1.82191]
[1749733832681,3.93645,2744.4,2744.3,0.72866]
[1749733836490,0.72867,2744.3,2744.2,0.72866]
[1749733836788,3.93646,2744.4,2744.3,0.72866]
[1749733838691,0.72866,2744.4,2744.3,0.72866]
[1749733839179,0.63183809,2744.5,2744.4,0.72864]
[1749733839380,0.00543809,2744.5,2744.4,0.72864]
[1749733839785,0.73404809,2744.5,2744.4,0.72864]
[1749733839985,0.72868,2744.4,2744.3,0.72864]
[1749733840184,3.93646,2744.4,2744.3,0.72866]
[1749733840586,0.72866,2744.4,2744.3,0.72866]
[1749733840788,0.00543809,2744.5,2744.4,0.72864]
[1749733840990,0.73404809,2744.5,2744.4,0.72864]
[1749733841493,0.00543809,2744.5,2744.4,0.72864]
[1749733842492,0.73404809,2744.5,2744.4,0.72864]
[1749733843894,1.8216,2744.4,2743.7,6.138]
[1749733844091,0.7288,2743.8,2743.7,6.138]
[1749733844390,0.7908072,2743.9,2743.8,0.72876]
[1749733844787,0.0620172,2743.9,2743.8,0.72876]
[1749733844986,0.7288,2743.8,2743.7,6.8668]
[1749733845192,0.0620172,2743.9,2743.8,0.7288]
[1749733845487,0.00543809,2744.5,2744.4,0.72864]
[1749733845681,0.73404809,2744.5,2744.4,0.72864]
[1749733845882,0.72866,2744.3,2744.2,1.31557]
[1749733846085,1.82168,2744.3,2743.9,3.2078]
[1749733846397,0.7288,2743.9,2743.8,0.72877]
[1749733847292,0.7288,2743.8,2743.7,6.138]
[1749733847591,0.7288,2743.8,2743.7,6.86682]
[1749733847795,0.72879,2743.9,2743.8,0.72875]
[1749733847998,0.72876,2744.1,2744.0,0.72872]
[1749733848498,0.72879,2744.0,2743.9,0.72876]
[1749733848900,0.7288,2743.8,2743.7,6.138]
[1749733849198,0.7288,2743.8,2743.7,6.86681]
[1749733849802,0.7288,2743.8,2743.7,6.138]
[1749733849991,1.9683,2743.8,2743.7,6.138]
[1749733850298,1.9683,2743.8,2743.7,6.86682]
[1749733851802,3.2078,2743.9,2743.8,0.7288]
[1749733851998,0.72874,2744.0,2743.9,0.72877]
[1749733852195,0.00543809,2744.5,2744.4,0.72864]
[1749733852702,0.73404809,2744.5,2744.4,0.72864]
[1749733853798,0.00543809,2744.5,2744.4,0.72864]
[1749733854100,0.00543809,2744.5,2744.4,2.01374]
[1749733854298,0.73404809,2744.5,2744.4,2.01374]
[1749733854499,0.73404809,2744.5,2744.4,0.72864]
[1749733854993,0.72866,2744.3,2744.2,0.72868]
[1749733855197,0.72877,2744.0,2743.9,0.72873]
[1749733855596,0.72881,2743.9,2743.8,0.72877]
[1749733856804,0.72882,2743.8,2743.7,0.7288]
[1749733857899,0.72879,2743.9,2743.8,0.72877]
[1749733858901,0.72876,2744.0,2743.9,0.72874]
[1749733859400,1.31793,2744.2,2744.1,0.72872]
[1749733860500,0.72881,2743.9,2743.8,0.72878]
[1749733860804,0.72881,2743.9,2743.8,6.85578]
[1749733862300,0.72873,2744.1,2744.0,0.72872]
[1749733862699,4.5257,2744.2,2744.1,0.72872]
[1749733863000,0.72875,2744.1,2744.0,0.72871]
[1749733863296,0.72874,2744.0,2743.9,0.72875]
[1749733863603,0.72874,2744.0,2743.9,6.127]
[1749733863805,0.7288,2743.8,2743.7,0.7288]
[1749733866301,3.2078,2744.2,2743.8,1.82197]
[1749733866502,1.35559,2744.3,2744.2,0.72869]
[1749733867002,0.72869,2744.3,2744.2,0.72869]
[1749733867200,0.72872,2744.2,2744.1,0.7287]
[1749733867399,0.72872,2744.1,2744.0,2.5642]
[1749733868204,0.72872,2744.1,2744.0,1.3285]
[1749733868407,0.7287,2744.2,2744.1,0.72869]
[1749733868597,0.00543809,2744.5,2744.3,0.72864]
[1749733868798,0.00543809,2744.5,2744.4,0.72864]
[1749733870299,3.2078,2745.0,2744.9,0.7285]
[1749733872012,3.93619,2745.4,2744.9,0.7285]
[1749733872210,3.93619,2745.4,2745.3,0.7284]
[1749733872510,0.72843,2745.3,2745.2,0.7284]
[1749733872903,3.93619,2745.4,2745.3,0.7284]
[1749733873213,3.93617,2745.4,2745.3,0.7284]
[1749733874408,0.72845,2745.2,2745.1,0.72844]
[1749733875310,0.72842,2745.3,2745.2,0.7284]
[1749733876312,0.72839,2745.4,2745.3,0.72837]
[1749733877613,0.72845,2745.2,2745.1,0.72843]
[1749733878610,0.72835,2745.6,2745.3,1.82098]
[1749733878912,3.2078,2745.7,2745.4,6.85435]
[1749733878913,0.72834,2745.5,2745.4,6.85435]
[1749733879112,0.72834,2745.5,2745.4,0.72835]
[1749733879309,0.72845,2745.2,2745.1,0.72842]
[1749733879513,0.72842,2745.3,2745.2,0.72839]
[1749733883312,0.72838,2745.5,2745.4,0.72835]
[1749733885016,1.82088,2745.5,2745.1,6.126]
[1749733885316,0.72845,2745.1,2745.0,0.72848]
[1749733885704,1.31765,2745.1,2745.0,0.72848]
[1749733886610,0.5892,2745.1,2745.0,0.72848]
[1749733886811,3.2078,2745.2,2745.1,0.72845]
[1749733887205,0.72837,2745.5,2745.2,1.82103]
[1749733887517,0.72831,2745.7,2745.6,0.72832]
[1749733887817,0.72827,2745.9,2745.8,0.72824]
[1749733888021,1.32597,2745.9,2745.8,0.72824]
[1749733888318,1.786,2746.4,2745.6,11.15059]
[1749733888519,1.1903,2746.4,2746.3,0.72813]
[1749733888818,3.2078,2746.8,2746.7,0.72799]
[1749733889016,0.728,2746.8,2746.7,0.72799]
[1749733889216,0.72804,2746.7,2746.6,0.72803]
[1749733890109,0.72804,2746.7,2746.6,0.72805]
[1749733890315,3.2078,2746.8,2746.7,0.72803]
[1749733890915,0.72798,2746.9,2746.8,0.72798]
[1749733891112,3.8055,2747.1,2747.0,0.72795]
[1749733891317,3.2078,2747.1,2747.0,0.72795]
[1749733891614,0.14344448,2747.5,2746.9,3.2078]
[1749733891818,0.72784,2747.4,2746.9,3.2078]
[1749733892122,0.14344448,2747.5,2747.4,0.72784]
[1749733892323,0.14344448,2747.5,2747.2,6.84888]
[1749733892619,0.72792,2747.1,2747.0,1.2321]
[1749733892819,0.72788,2747.3,2747.1,0.72792]
[1749733893027,0.72791,2747.2,2747.0,7.3531]
[1749733893220,0.7279,2747.2,2747.0,8.08104]
[1749733893421,0.72795,2747.0,2746.9,3.2078]
[1749733893721,0.72803,2746.7,2746.6,4.4213]
[1749733893920,0.72803,2746.7,2746.6,3.2078]
[1749733894317,0.5904,2747.0,2746.6,3.93585]
[1749733894518,0.72803,2746.7,2746.6,3.2078]
[1749733896126,0.72803,2746.7,2746.6,3.93584]
[1749733896419,0.72803,2746.7,2746.6,3.2078]
[1749733896620,0.72805,2746.6,2746.5,0.00546179]
[1749733896823,4.52305,2746.6,2746.5,0.00546179]
[1749733897625,0.72821,2746.0,2745.9,31.3528]
[1749733898127,0.72821,2746.0,2745.9,9.3268]
[1749733898324,0.7282,2746.1,2746.0,0.7282]
[1749733898817,0.72821,2746.0,2745.9,9.3268]
[1749733900322,0.72821,2746.0,2745.9,10.05504]
[1749733900827,0.72821,2746.1,2746.0,0.7282]
[1749733901618,0.72821,2746.0,2745.9,10.05502]
[1749733902224,0.72821,2746.0,2745.8,0.00546179]
[1749733902425,1.32124,2745.9,2745.8,0.00546179]
[1749733902625,3.2078,2746.2,2745.8,0.00546179]
[1749733902932,0.72824,2746.0,2745.9,0.72822]
[1749733903430,2.00661179,2746.3,2746.2,0.72816]
[1749733903729,0.72818,2746.2,2746.1,0.72817]
[1749733904622,1.27846179,2746.3,2746.2,0.72816]
[1749733904829,0.73359179,2746.3,2746.2,0.72816]
[1749733905831,0.00546179,2746.3,2746.2,0.72816]
[1749733906224,0.73359179,2746.3,2746.2,0.72816]
[1749733907435,0.00546179,2746.3,2746.2,0.72816]
[1749733907624,0.00546179,2746.3,2746.2,5.10806]
[1749733908520,0.73359179,2746.3,2746.2,5.10806]
[1749733909731,0.00546179,2746.3,2746.2,5.10806]
[1749733910233,0.73359179,2746.3,2746.2,3.93596]
[1749733911836,0.73359179,2746.3,2746.2,3.2078]
[1749733912527,0.72824,2745.9,2745.8,11.88550179]
[1749733912728,0.72824,2745.9,2745.8,10.69590179]
[1749733912933,0.72824,2745.9,2745.8,4.57690179]
[1749733913329,0.72824,2745.9,2745.8,3.21326179]
[1749733913532,1.36768,2746.2,2746.1,0.72819]
[1749733913726,0.6395,2746.2,2746.1,0.72819]
[1749733913929,0.72819,2746.1,2746.0,6.116]
[1749733914343,0.72819,2746.1,2746.0,0.72821]
[1749733916036,0.72821,2746.0,2745.9,6.84422]
[1749733916239,0.72824,2745.9,2745.8,3.21326179]
[1749733916427,1.33124,2745.9,2745.8,0.00546179]
[1749733917533,0.72832,2745.6,2745.5,3.2078]
[1749733920740,0.72832,2745.6,2745.5,3.93614]
[1749733921042,3.05569,2745.8,2745.3,0.00546179]
[1749733921236,0.72837,2745.4,2745.3,0.00546179]
[1749733922240,0.72837,2745.4,2744.8,3.2078]
[1749733922241,0.7285,2744.9,2744.8,3.2078]
[1749733922639,0.7285,2744.9,2744.0,67.30971]